fUSD/lending_fUSD_20250630
["ID","MTS","AMOUNT","RATE_DAILY","PERIOD"]
[368670183,1751288596430,16741.4011977,0.00014099,2]
[368670184,1751288596453,12111.3193022,0.00014099,2]
[368670186,1751288643803,5134.4059172,0.00014099,2]
[368670187,1751288647410,1000.0,0.00013151,2]
[368670188,1751288677855,11754.2747806,0.00014099,2]
[368670189,1751288677878,15873.2212194,0.00014099,2]
[368670190,1751288694108,14126.7787806,0.00014099,2]
[368670191,1751288694134,13500.7172194,0.00014099,2]
[368670192,1751288701716,1200.0,0.00014099,2]
[368670193,1751288720142,15299.2827806,0.00014,2]
[368670194,1751288720167,30000.0,0.00014,2]
[368670195,1751288720192,30000.0,0.00014,2]
[368670196,1751288720216,30000.0,0.00014,2]
[368670197,1751288720248,30000.0,0.00014,2]
[368670198,1751288720272,30000.0,0.00014,2]
[368670199,1751288720297,2791.58347838,0.00014,2]
[368670200,1751288722906,27208.41652162,0.00014099,2]
[368670201,1751288722930,1173.15014498,0.00014099,2]
[368670202,1751288729479,5000.0,0.0001401,2]
[368670203,1751288750236,6707.7444729,0.00014099,2]
[368670204,1751288777583,17119.10538212,0.00014099,2]
[368670205,1751288777608,18698.50461788,0.00014099,2]
[368670206,1751288787772,11301.49538212,0.000141,2]
[368670207,1751288787795,5571.72859214,0.000141,2]
[368670208,1751288795499,24428.27140786,0.000141,2]
[368670209,1751288795523,30000.0,0.000141,2]
[368670210,1751288795547,15206.30777193,0.000141,2]
[368670212,1751288803716,12069.0285362,0.00014099,2]
[368670216,1751288816151,1872.0,0.000141,2]
[368670218,1751288841700,852.66369187,0.00014099,2]
[368670219,1751288841724,30000.0,0.00014099,2]
[368670220,1751288841748,8276.08630813,0.00014099,2]
[368670221,1751288846478,318.19215942,0.00014011,2]
[368670222,1751288857918,3538.7169561,0.00014099,2]
[368670223,1751288862799,539.7098637,0.00014007,2]
[368670224,1751288867507,539.70986363,0.00014038,2]
[368670225,1751288872488,539.70986363,0.00014069,2]
[368670226,1751288873814,311.47973954,0.0001401,2]
[368670227,1751288878505,311.47973952,0.00014041,2]
[368670228,1751288881247,300.0,0.00014099,2]
[368670229,1751288884127,311.47973952,0.00014071,2]
[368670230,1751288884464,15013.43576681,0.00014099,2]
[368670231,1751288884487,30000.0,0.00014099,2]
[368670232,1751288884510,864.13523309,0.00014099,2]
[368670233,1751288894725,5000.0,0.0001401,2]
[368670235,1751288941358,24135.86476691,0.00014099,2]
[368670236,1751288941382,21741.70623299,0.00014099,2]
[368670237,1751288941885,300.0,0.00014099,2]
[368670238,1751288965363,4075.6558734,0.00014099,2]
[368670243,1751288993734,3882.63789361,0.00014099,2]
[368670244,1751288993757,30000.0,0.00014099,2]
[368670245,1751288993779,5413.31077299,0.00014099,2]
[368670246,1751289005623,1200.0,0.00014099,2]
[368670247,1751289009741,161.13,0.00014097,2]
[368670248,1751289030952,161.14,0.00014097,2]
[368670252,1751289031840,-151.0,0.000141,2]
[368670253,1751289031851,-151.0,0.000141,2]
[368670254,1751289031860,-85.13222533,0.000141,2]
[368670255,1751289031872,-65.86777467,0.000141,2]
[368670256,1751289031882,-151.0,0.000141,2]
[368670257,1751289031891,-68.67689045,0.000141,2]
[368670261,1751289037665,-82.32310955,0.000141,2]
[368670262,1751289037675,-151.0,0.000141,2]
[368670263,1751289037685,-115.77075922,0.000141,2]
[368670264,1751289037724,-35.22924078,0.000141,2]
[368670265,1751289037733,-151.0,0.000141,2]
[368670266,1751289037743,-350.0,0.000141,2]
[368670267,1751289037753,-350.0,0.000141,2]
[368670268,1751289037762,-539.70986363,0.000141,2]
[368670269,1751289037772,-207.4,0.00014102,2]
[368670270,1751289037781,-151.0,0.00014102,2]
[368670271,1751289037790,-151.0,0.00014102,2]
[368670272,1751289037799,-151.0,0.00014102,2]
[368670273,1751289037809,-151.0,0.00014102,2]
[368670274,1751289037818,-151.0,0.00014102,2]
[368670275,1751289037827,-151.0,0.00014102,2]
[368670276,1751289037836,-151.0,0.00014102,2]
[368670277,1751289037846,-151.0,0.00014102,2]
[368670278,1751289037856,-151.0,0.00014102,2]
[368670279,1751289037865,-151.0,0.00014102,2]
[368670280,1751289037874,-151.0,0.00014102,2]
[368670281,1751289037883,-202.43536349,0.00014102,2]
[368670282,1751289037893,-314.226302,0.00014102,2]
[368670283,1751289037903,-311.47973952,0.00014102,2]
[368670284,1751289037912,-189.96807315,0.00014106,2]
[368670285,1751289037921,-1041.21,0.00014107,2]
[368670286,1751289037930,-803.72,0.00014107,2]
[368670288,1751289037939,-490.0,0.00014107,2]
[368670290,1751289037948,-490.0,0.00014107,2]
[368670292,1751289037957,-490.0,0.00014107,2]
[368670294,1751289037966,-274.62093858,0.00014107,2]
[368670490,1751289040021,-215.37906142,0.00014107,2]
[368670492,1751289040031,-524.91,0.00014107,2]
[368670494,1751289040040,-224.80818828,0.00014107,2]
[368670496,1751289040051,-256.07568201,0.00014107,2]
[368670799,1751289042875,-374.1650802,0.00014107,2]
[368670803,1751289042908,-420.33104951,0.00014107,2]
[368670805,1751289042916,-490.0,0.00014107,2]
[368670807,1751289042926,-843.41,0.00014107,2]
[368670809,1751289042935,-619.83,0.00014107,2]
[368670811,1751289042944,-151.0,0.00014107,2]
[368670813,1751289042954,-151.0,0.00014107,2]
[368670815,1751289042964,-490.0,0.00014107,2]
[368670817,1751289042973,-151.391296,0.00014107,2]
[368670819,1751289042983,-490.0,0.00014107,2]
[368670821,1751289042992,-310.9941034,0.00014107,2]
[368670823,1751289043002,-728.25,0.00014107,2]
[368670825,1751289043011,-490.0,0.00014107,2]
[368670827,1751289043021,-490.0,0.00014107,2]
[368670829,1751289043030,-1364.14,0.00014107,2]
[368670831,1751289043040,-1520.98,0.00014107,2]
[368670834,1751289043051,-339.359541,0.00014107,2]
[368670836,1751289043060,-339.359541,0.00014107,2]
[368670838,1751289043070,-490.0,0.00014107,2]
[368670840,1751289043079,-1061.63,0.00014107,2]
[368670842,1751289043088,-596.82,0.00014107,2]
[368670844,1751289043098,-490.0,0.00014107,2]
[368670846,1751289043107,-490.0,0.00014107,2]
[368670848,1751289043117,-1081.77,0.00014107,2]
[368670850,1751289043127,-490.0,0.00014107,2]
[368670852,1751289043136,-1490.45,0.00014107,2]
[368670854,1751289043146,-490.0,0.00014107,2]
[368670856,1751289043158,-490.0,0.00014107,2]
[368670859,1751289043168,-782.72,0.00014107,2]
[368670862,1751289043178,-562.66,0.00014107,2]
[368670865,1751289043188,-1591.57,0.00014107,2]
[368670867,1751289043197,-911.7,0.00014107,2]
[368670869,1751289043206,-501.4613698,0.00014107,2]
[368670871,1751289043215,-490.0,0.00014107,2]
[368670872,1751289043224,-490.0,0.00014107,2]
[368670874,1751289043235,-926.04,0.00014107,2]
[368670876,1751289043244,-685.48,0.00014107,2]
[368670878,1751289043253,-490.0,0.00014107,2]
[368670880,1751289043263,-151.0,0.00014107,2]
[368670882,1751289043272,-490.0,0.00014107,2]
[368670884,1751289043281,-969.77,0.00014107,2]
[368670886,1751289043291,-490.0,0.00014107,2]
[368670888,1751289043300,-1310.38,0.00014107,2]
[368670890,1751289043309,-426.85579703,0.00014107,2]
[368670892,1751289043318,-490.0,0.00014107,2]
[368670894,1751289043328,-845.06,0.00014107,2]
[368670896,1751289043337,-1110.11,0.00014107,2]
[368670898,1751289043347,-490.0,0.00014107,2]
[368670900,1751289043357,-1329.17,0.00014107,2]
[368670902,1751289043367,-490.0,0.00014107,2]
[368670904,1751289043376,-490.0,0.00014107,2]
[368670906,1751289043386,-728.31,0.00014107,2]
[368670909,1751289043395,-490.0,0.00014107,2]
[368670911,1751289043404,-490.0,0.00014107,2]
[368670913,1751289043414,-1029.12,0.00014107,2]
[368670915,1751289043424,-214.083402,0.00014107,2]
[368670917,1751289043434,-1918.37,0.00014107,2]
[368670919,1751289043444,-151.0,0.00014107,2]
[368670921,1751289043453,-151.0,0.00014107,2]
[368670923,1751289043462,-151.0,0.00014107,2]
[368670925,1751289043472,-979.75,0.00014107,2]
[368670927,1751289043482,-151.0,0.00014107,2]
[368670929,1751289043491,-151.0,0.00014107,2]
[368670931,1751289043500,-151.0,0.00014107,2]
[368670932,1751289043510,-151.0,0.00014107,2]
[368670934,1751289043519,-151.0,0.00014107,2]
[368670937,1751289043529,-151.0,0.00014107,2]
[368670939,1751289043539,-165.032175,0.00014107,2]
[368670941,1751289043548,-890.92,0.00014107,2]
[368670943,1751289043558,-561.97,0.00014107,2]
[368670945,1751289043567,-151.0,0.00014107,2]
[368670947,1751289043576,-279.324254,0.00014107,2]
[368670949,1751289043586,-724.92,0.00014107,2]
[368670952,1751289043606,-490.0,0.00014107,2]
[368670954,1751289043616,-490.0,0.00014107,2]
[368670956,1751289043626,-490.0,0.00014107,2]
[368670958,1751289043635,-1822.37,0.00014107,2]
[368670960,1751289043645,-565.49,0.00014107,2]
[368670962,1751289043654,-523.20019129,0.00014107,2]
[368670964,1751289043664,-350.0,0.00014107,2]
[368670966,1751289043674,-350.0,0.00014107,2]
[368670968,1751289043685,-350.0,0.00014107,2]
[368670970,1751289043695,-350.0,0.00014107,2]
[368670972,1751289043705,-350.0,0.00014107,2]
[368670974,1751289043714,-350.0,0.00014107,2]
[368670976,1751289043724,-350.0,0.00014107,2]
[368670978,1751289043734,-350.0,0.00014107,2]
[368670980,1751289043743,-350.0,0.00014107,2]
[368670982,1751289043753,-350.0,0.00014107,2]
[368670984,1751289043763,-350.0,0.00014107,2]
[368670986,1751289043772,-490.0,0.00014107,2]
[368670988,1751289043782,-350.0,0.00014107,2]
[368670990,1751289043791,-618.22,0.00014107,2]
[368670992,1751289043801,-350.0,0.00014107,2]
[368670994,1751289043810,-520.3267721,0.00014107,2]
[368670996,1751289043819,-350.0,0.00014107,2]
[368670998,1751289043828,-350.0,0.00014107,2]
[368671000,1751289043838,-350.0,0.00014107,2]
[368671002,1751289043848,-350.0,0.00014107,2]
[368671005,1751289043859,-350.0,0.00014107,2]
[368671007,1751289043868,-490.0,0.00014107,2]
[368671009,1751289043877,-965.06,0.00014107,2]
[368671011,1751289043887,-490.0,0.00014107,2]
[368671013,1751289043897,-944.09,0.00014107,2]
[368671015,1751289043906,-1308.02,0.00014107,2]
[368671017,1751289043915,-621.52,0.00014107,2]
[368671019,1751289043925,-718.25,0.00014107,2]
[368671021,1751289043934,-490.0,0.00014107,2]
[368671023,1751289043944,-1098.32,0.00014107,2]
[368671025,1751289043953,-490.0,0.00014107,2]
[368671027,1751289043962,-1002.47,0.00014107,2]
[368671029,1751289043972,-756.48,0.00014107,2]
[368671031,1751289043981,-490.0,0.00014107,2]
[368671033,1751289043990,-746.02,0.00014107,2]
[368671035,1751289043999,-490.0,0.00014107,2]
[368671037,1751289044009,-490.0,0.00014107,2]
[368671039,1751289044018,-612.19,0.00014107,2]
[368671041,1751289044028,-1911.61,0.00014107,2]
[368671043,1751289044037,-655.82,0.00014107,2]
[368671045,1751289044047,-734.64,0.00014107,2]
[368671047,1751289044056,-490.0,0.00014107,2]
[368671049,1751289044065,-528.83,0.00014107,2]
[368671051,1751289044074,-504.37,0.00014107,2]
[368671053,1751289044084,-658.69,0.00014107,2]
[368671055,1751289044093,-490.0,0.00014107,2]
[368671057,1751289044102,-720.24,0.00014107,2]
[368671059,1751289044111,-490.0,0.00014107,2]
[368671061,1751289044121,-1336.35,0.00014107,2]
[368671063,1751289044130,-574.69,0.00014107,2]
[368671065,1751289044139,-386.74832239,0.00014107,2]
[368671067,1751289044148,-490.0,0.00014107,2]
[368671069,1751289044161,-1445.16,0.00014107,2]
[368671071,1751289044170,-490.0,0.00014107,2]
[368671073,1751289044180,-515.98761098,0.00014107,2]
[368671075,1751289044189,-1084.84,0.00014107,2]
[368671077,1751289044199,-490.0,0.00014107,2]
[368671079,1751289044208,-890.78,0.00014107,2]
[368671081,1751289044218,-195.21863939,0.00014107,2]
[368671083,1751289044228,-696.31,0.00014107,2]
[368671085,1751289044238,-500.0,0.00014107,2]
[368671087,1751289044247,-490.0,0.00014107,2]
[368671089,1751289044256,-3507.65,0.00014107,2]
[368671091,1751289044265,-490.0,0.00014107,2]
[368671093,1751289044275,-525.17,0.00014107,2]
[368671095,1751289044284,-500.0,0.00014107,2]
[368671097,1751289044293,-490.0,0.00014107,2]
[368671099,1751289044303,-150.0,0.00014107,2]
[368671101,1751289044312,-166.8303636,0.00014107,2]
[368671103,1751289044321,-490.0,0.00014107,2]
[368671105,1751289044331,-500.0,0.00014107,2]
[368671107,1751289044341,-490.0,0.00014107,2]
[368671108,1751289044351,-1449.92,0.00014107,2]
[368671109,1751289044360,-500.0,0.00014107,2]
[368671110,1751289044370,-490.0,0.00014107,2]
[368671111,1751289044379,-579.9,0.00014107,2]
[368671112,1751289044388,-490.0,0.00014107,2]
[368671113,1751289044398,-526.0,0.00014107,2]
[368671114,1751289044407,-151.0,0.00014107,2]
[368671115,1751289044416,-500.0,0.00014107,2]
[368671116,1751289044426,-1518.3,0.00014107,2]
[368671117,1751289044436,-151.0,0.00014107,2]
[368671119,1751289044445,-151.0,0.00014107,2]
[368671121,1751289044455,-1052.6,0.00014107,2]
[368671123,1751289044465,-150.0,0.00014107,2]
[368671125,1751289044474,-490.0,0.00014107,2]
[368671127,1751289044483,-3118.28,0.00014107,2]
[368671129,1751289044493,-490.0,0.00014107,2]
[368671131,1751289044502,-825.41,0.00014107,2]
[368671133,1751289044512,-490.0,0.00014107,2]
[368671135,1751289044523,-817.7,0.00014107,2]
[368671137,1751289044532,-151.0,0.00014107,2]
[368671139,1751289044542,-151.0,0.00014107,2]
[368671141,1751289044551,-1826.67,0.00014107,2]
[368671143,1751289044561,-1201.5,0.00014107,2]
[368671145,1751289044570,-1781.7,0.00014107,2]
[368671147,1751289044580,-4290.71,0.00014107,2]
[368671149,1751289044589,-860.43,0.00014107,2]
[368671151,1751289044599,-802.65,0.00014107,2]
[368671153,1751289044608,-1742.04,0.00014107,2]
[368671155,1751289044617,-490.0,0.00014107,2]
[368671157,1751289044627,-979.98,0.00014107,2]
[368671159,1751289044636,-448.0,0.00014107,2]
[368671161,1751289044646,-151.0,0.00014107,2]
[368671163,1751289044657,-151.0,0.00014107,2]
[368671165,1751289044666,-490.0,0.00014107,2]
[368671167,1751289044676,-490.0,0.00014107,2]
[368671169,1751289044686,-2827.056498,0.00014107,2]
[368671171,1751289044695,-150.0,0.00014107,2]
[368671173,1751289044704,-3752.35,0.00014107,2]
[368671175,1751289044714,-506.69666059,0.00014107,2]
[368671177,1751289044723,-500.0,0.00014107,2]
[368671179,1751289044733,-151.0,0.00014107,2]
[368671181,1751289044742,-247.529696,0.00014107,2]
[368671183,1751289044751,-490.0,0.00014107,2]
[368671185,1751289044761,-2319.93,0.00014107,2]
[368671187,1751289044770,-157.60867,0.00014107,2]
[368671189,1751289044780,-150.0,0.00014107,2]
[368671191,1751289044791,-1244.99,0.00014107,2]
[368671193,1751289044801,-506.75073488,0.00014107,2]
[368671195,1751289044811,-1502.89,0.00014107,2]
[368671197,1751289044819,-353.538395,0.00014107,2]
[368671199,1751289044829,-728.49,0.00014107,2]
[368671201,1751289044839,-1532.41,0.00014107,2]
[368671203,1751289044848,-151.0,0.00014107,2]
[368671205,1751289044858,-154.8076,0.00014107,2]
[368671207,1751289044868,-490.0,0.00014107,2]
[368671209,1751289044877,-151.0,0.00014107,2]
[368671211,1751289044886,-490.0,0.00014107,2]
[368671213,1751289044895,-2517.6,0.00014107,2]
[368671215,1751289044904,-211.271265,0.00014107,2]
[368671217,1751289044913,-698.33,0.00014107,2]
[368671219,1751289044922,-1474.66,0.00014107,2]
[368671221,1751289044931,-1564.46,0.00014107,2]
[368671223,1751289044941,-151.0,0.00014107,2]
[368671225,1751289044950,-151.0,0.00014107,2]
[368671227,1751289044959,-151.0,0.00014107,2]
[368671229,1751289044968,-1075.37,0.00014107,2]
[368671231,1751289044977,-3133.129706,0.00014107,2]
[368671233,1751289044985,-490.0,0.00014107,2]
[368671235,1751289044994,-4032.2,0.00014107,2]
[368671237,1751289045004,-490.0,0.00014107,2]
[368671239,1751289045013,-490.0,0.00014107,2]
[368671241,1751289045022,-490.0,0.00014107,2]
[368671242,1751289045031,-3741.66,0.00014107,2]
[368671244,1751289045041,-769.16,0.00014107,2]
[368671246,1751289045050,-490.0,0.00014107,2]
[368671248,1751289045059,-678.23,0.00014107,2]
[368671251,1751289045069,-1639.17,0.00014107,2]
[368671253,1751289045079,-518.16,0.00014107,2]
[368671255,1751289045088,-490.0,0.00014107,2]
[368671257,1751289045098,-500.0,0.00014107,2]
[368671259,1751289045109,-4290.56,0.00014107,2]
[368671261,1751289045118,-3223.756869,0.00014107,2]
[368671263,1751289045128,-490.0,0.00014107,2]
[368671265,1751289045137,-1737.99,0.00014107,2]
[368671267,1751289045147,-490.0,0.00014107,2]
[368671269,1751289045159,-490.0,0.00014107,2]
[368671271,1751289045169,-7131.0,0.00014107,2]
[368671273,1751289045178,-507.45,0.00014107,2]
[368671275,1751289045187,-1523.38,0.00014107,2]
[368671277,1751289045198,-150.0,0.00014107,2]
[368671279,1751289045207,-4496.02,0.00014107,2]
[368671281,1751289045216,-1264.84,0.00014107,2]
[368671283,1751289045226,-490.0,0.00014107,2]
[368671285,1751289045237,-500.0,0.00014107,2]
[368671287,1751289045248,-4243.0,0.00014107,2]
[368671289,1751289045257,-1272.82,0.00014107,2]
[368671291,1751289045266,-1805.67,0.00014107,2]
[368671293,1751289045275,-1309.94,0.00014107,2]
[368671295,1751289045284,-490.0,0.00014107,2]
[368671297,1751289045293,-152.15659752,0.00014107,2]
[368671299,1751289045302,-490.0,0.00014107,2]
[368671301,1751289045311,-897.79,0.00014107,2]
[368671303,1751289045320,-151.0,0.00014107,2]
[368671305,1751289045330,-158.65676393,0.00014107,2]
[368671307,1751289045339,-1450.53,0.00014107,2]
[368671309,1751289045348,-150.0,0.00014107,2]
[368671311,1751289045357,-151.0,0.00014107,2]
[368671313,1751289045367,-150.0,0.00014107,2]
[368671315,1751289045376,-151.0,0.00014107,2]
[368671317,1751289045385,-151.0,0.00014107,2]
[368671319,1751289045393,-151.0,0.00014107,2]
[368671321,1751289045403,-150.0,0.00014107,2]
[368671323,1751289045412,-940.66,0.00014107,2]
[368671325,1751289045421,-150.0,0.00014107,2]
[368671327,1751289045430,-5949.9,0.00014107,2]
[368671329,1751289045440,-2716.22,0.00014107,2]
[368671331,1751289045449,-490.0,0.00014107,2]
[368671333,1751289045458,-1180.73,0.00014107,2]
[368671335,1751289045468,-1579.87,0.00014107,2]
[368671337,1751289045477,-490.0,0.00014107,2]
[368671339,1751289045487,-490.0,0.00014107,2]
[368671341,1751289045496,-490.0,0.00014107,2]
[368671343,1751289045506,-1837.2,0.00014107,2]
[368671345,1751289045516,-499.04,0.00014107,2]
[368671346,1751289045526,-490.0,0.00014107,2]
[368671348,1751289045536,-2791.58,0.00014107,2]
[368671350,1751289045545,-2548.47,0.00014107,2]
[368671351,1751289045554,-2063.58,0.00014107,2]
[368671353,1751289045564,-526.74,0.00014107,2]
[368671355,1751289045573,-151.0,0.00014107,2]
[368671357,1751289045582,-193.28032,0.00014107,2]
[368671359,1751289045591,-151.0,0.00014107,2]
[368671360,1751289045600,-151.0,0.00014107,2]
[368671362,1751289045610,-151.0,0.00014107,2]
[368671364,1751289045619,-151.0,0.00014107,2]
[368671365,1751289045628,-151.0,0.00014107,2]
[368671367,1751289045637,-151.0,0.00014107,2]
[368671369,1751289045647,-151.0,0.00014107,2]
[368671371,1751289045656,-151.0,0.00014107,2]
[368671373,1751289045667,-151.0,0.00014107,2]
[368671374,1751289045676,-151.0,0.00014107,2]
[368671376,1751289045685,-151.0,0.00014107,2]
[368671378,1751289045694,-155.766028,0.00014107,2]
[368671379,1751289045705,-783.16,0.00014107,2]
[368671381,1751289045714,-794.62,0.00014107,2]
[368671383,1751289045723,-281.874929,0.00014107,2]
[368671384,1751289045732,-968.66,0.00014107,2]
[368671386,1751289045741,-490.0,0.00014107,2]
[368671388,1751289045751,-1530.28,0.00014107,2]
[368671390,1751289045760,-1634.92,0.00014107,2]
[368671391,1751289045769,-2187.74,0.00014107,2]
[368671393,1751289045778,-1105.86,0.00014107,2]
[368671395,1751289045787,-490.0,0.00014107,2]
[368671397,1751289045797,-1182.75,0.00014107,2]
[368671399,1751289045808,-490.0,0.00014107,2]
[368671401,1751289045817,-1548.48,0.00014107,2]
[368671403,1751289045827,-1235.5,0.00014107,2]
[368671404,1751289045836,-1041.01,0.00014107,2]
[368671406,1751289045845,-490.0,0.00014107,2]
[368671408,1751289045855,-1678.9,0.00014107,2]
[368671410,1751289045865,-593.59,0.00014107,2]
[368671411,1751289045874,-490.0,0.00014107,2]
[368671413,1751289045884,-490.0,0.00014107,2]
[368671415,1751289045893,-1045.53,0.00014107,2]
[368671417,1751289045903,-995.59,0.00014107,2]
[368671418,1751289045912,-1523.01,0.00014107,2]
[368671420,1751289045922,-490.0,0.00014107,2]
[368671422,1751289045931,-903.71,0.00014107,2]
[368671424,1751289045940,-986.18,0.00014107,2]
[368671426,1751289045949,-151.0,0.00014107,2]
[368671427,1751289045959,-151.0,0.00014107,2]
[368671429,1751289045968,-151.0,0.00014107,2]
[368671431,1751289045977,-151.0,0.00014107,2]
[368671433,1751289045987,-490.0,0.00014107,2]
[368671435,1751289045996,-151.0,0.00014107,2]
[368671436,1751289046006,-224.64132,0.00014107,2]
[368671438,1751289046016,-2321.5,0.00014107,2]
[368671440,1751289046025,-1899.56,0.00014107,2]
[368671442,1751289046034,-490.0,0.00014107,2]
[368671444,1751289046044,-1018.38,0.00014107,2]
[368671445,1751289046053,-974.54,0.00014107,2]
[368671447,1751289046063,-1355.45,0.00014107,2]
[368671449,1751289046072,-490.0,0.00014107,2]
[368671451,1751289046081,-325.04791672,0.00014107,2]
[368671453,1751289046090,-490.0,0.00014107,2]
[368671455,1751289046100,-1018.53,0.00014107,2]
[368671457,1751289046109,-490.0,0.00014107,2]
[368671458,1751289046118,-10034.05,0.00014107,2]
[368671460,1751289046127,-3410.35,0.00014107,2]
[368671462,1751289046138,-2249.11,0.00014107,2]
[368671464,1751289046147,-220.0,0.00014107,2]
[368671466,1751289046160,-490.0,0.00014107,2]
[368671468,1751289046169,-500.0,0.00014107,2]
[368671470,1751289046178,-990.18,0.00014107,2]
[368671472,1751289046187,-1019.63,0.00014107,2]
[368671473,1751289046196,-751.56,0.00014107,2]
[368671475,1751289046206,-4602.5,0.00014107,2]
[368671477,1751289046215,-490.0,0.00014107,2]
[368671479,1751289046225,-490.0,0.00014107,2]
[368671481,1751289046235,-1831.7,0.00014107,2]
[368671482,1751289046245,-4083.27,0.00014107,2]
[368671484,1751289046254,-804.79,0.00014107,2]
[368671486,1751289046264,-525.59,0.00014107,2]
[368671488,1751289046273,-490.0,0.00014107,2]
[368671490,1751289046282,-750.46,0.00014107,2]
[368671492,1751289046291,-490.0,0.00014107,2]
[368671493,1751289046300,-490.0,0.00014107,2]
[368671495,1751289046309,-1154.13,0.00014107,2]
[368671497,1751289046319,-843.94,0.00014107,2]
[368671499,1751289046329,-523.05,0.00014107,2]
[368671501,1751289046339,-3075.66,0.00014107,2]
[368671503,1751289046349,-1534.41,0.00014107,2]
[368671505,1751289046359,-5821.87,0.00014107,2]
[368671507,1751289046368,-490.0,0.00014107,2]
[368671508,1751289046378,-1975.11,0.00014107,2]
[368671510,1751289046389,-1890.81,0.00014107,2]
[368671512,1751289046398,-1442.18,0.00014107,2]
[368671514,1751289046410,-1590.14,0.00014107,2]
[368671516,1751289046420,-4175.75195355,0.00014108,2]
[368671518,1751289046430,-200.0,0.00014108,2]
[368671520,1751289046440,-151.567758,0.00014108,2]
[368671522,1751289046450,-150.0,0.00014108,2]
[368671523,1751289046459,-150.0,0.00014108,2]
[368671525,1751289046469,-150.0,0.00014108,2]
[368671527,1751289046478,-150.0,0.00014108,2]
[368671529,1751289046488,-150.0,0.00014108,2]
[368671531,1751289046497,-151.0,0.00014108,2]
[368671533,1751289046507,-151.0,0.00014108,2]
[368671534,1751289046517,-151.0,0.00014108,2]
[368671558,1751289046527,-151.0,0.00014108,2]
[368671564,1751289046813,-151.0,0.00014108,2]
[368671566,1751289046823,-294.44846,0.00014108,2]
[368671568,1751289046832,-200.0,0.00014108,2]
[368671570,1751289046842,-151.0,0.00014108,2]
[368671572,1751289046854,-151.0,0.00014108,2]
[368671574,1751289046863,-151.0,0.00014108,2]
[368671576,1751289046872,-151.0,0.00014108,2]
[368671578,1751289046882,-339.359541,0.00014108,2]
[368671580,1751289046891,-339.359541,0.00014108,2]
[368671581,1751289046900,-339.359541,0.00014108,2]
[368671582,1751289046910,-339.359541,0.00014108,2]
[368671583,1751289046919,-339.359541,0.00014108,2]
[368671584,1751289046929,-339.359541,0.00014108,2]
[368671585,1751289046939,-339.359541,0.00014108,2]
[368671586,1751289046949,-339.359541,0.00014108,2]
[368671587,1751289046959,-339.359541,0.00014108,2]
[368671588,1751289046968,-339.359541,0.00014108,2]
[368671589,1751289046977,-339.359541,0.00014108,2]
[368671590,1751289046988,-339.359541,0.00014108,2]
[368671591,1751289046997,-339.359541,0.00014108,2]
[368671592,1751289047007,-150.0,0.00014108,2]
[368671593,1751289047016,-490.0,0.00014108,2]
[368671594,1751289047026,-492.98,0.00014108,2]
[368671595,1751289047035,-746.02,0.00014108,2]